[Event "III Menorca Open-A 2024"]
[Site "Ciutadella Menorca"]
[Date "2024.04.02"]
[Round "1.14"]
[White "Karthik Venkataraman"]
[Black "Adam, Rafael"]
[Result "1-0"]
[ECO "A30"]
[WhiteElo "2609"]
[BlackElo "2146"]
[Annotator "TA"]
[PlyCount "87"]
[EventDate "2024.04.02"]
[EventType "swiss"]
[EventCountry "ESP"]
[SourceTitle "playchess.com"]
[Source "ChessBase"]
[SourceQuality "1"]
[TimeControl "5400+30"]

{[%evp 30,87,28,19,10,19,20,17,20,8,13,-5,0,0,0,0,0,0,93,90,91,99,98,93,95,93,82,97,86,91,145,142,142,144,144,144,144,126,125,126,135,131,228,223,197,239,248,235,407,405,452,436,518,491,453,416,494,492,491,487]} 1. c4 {[%emt 0:00:13]} Nf6 {[%emt 0:00:16]} 2. Nc3 {[%emt 0:00:07]} c5 {[%emt 0:00:30]} 3. Nf3 {[%emt 0:00:10]} e6 {[%emt 0:00:19]} 4. g3 {[%emt 0:00:15]} b6 {[%emt 0:00:10]} 5. Bg2 {[%emt 0:00:06]} Bb7 {[%emt 0:00:06]} 6. O-O {[%emt 0:00:05]} Be7 {[%emt 0:00:22]} 7. d4 {[%emt 0:00:20]} cxd4 {[%emt 0:00:13]} 8. Qxd4 {[%emt 0:00:06]} d6 {[%emt 0:03:09]} 9. Rd1 {[%emt 0:00:17]} a6 {[%emt 0:00:46]} 10. b3 {[%emt 0:14:43]} Nbd7 {[%emt 0:00:16]} 11. e4 {[%emt 0:00:27]} Qc7 {[%emt 0:01:47]} 12. Ba3 {[%emt 0:05:41]} Nc5 {[%emt 0:02:15]} 13. e5 {[%emt 0:01:10]} dxe5 {[%emt 0:01:05]} 14. Qxe5 {[%emt 0:00:07]} Rc8 {[%emt 0:15:39]} 15. Qxc7 {[%emt 0:09:01]} Rxc7 {[%emt 0:00:06]} 16. Bc1 {[%emt 0:00:04][%cal Ba3c1,Bc1f4,Bf4e3,Be3d4][%mdl 32]} Nfe4 {[%emt 0:29:04]} 17. Bf4 {[%emt 0:02:35] [#] And now Nxe4 would win.} Rc8 {[%emt 0:05:56]} 18. Nxe4 {[%emt 0:07:18]} Bxe4 {[%emt 0:04:03] The position is equal.} 19. Be3 {[%emt 0:00:21]} Bf6 {[%emt 0:02:04]} 20. Bd4 {[%emt 0:00:05]} Ke7 {[%emt 0:02:12]} 21. Ne5 {[%emt 0:01:29]} Bxg2 {[%emt 0:05:17]} 22. Kxg2 {[%emt 0:00:08]} Rhd8 {[%emt 0:01:13][%cal Od8d4]} 23. f4 {[%emt 0:00:28]} Rd6 {[%emt 0:10:00]} (23... b5 $11 {remains equal.}) 24. Bxc5 $16 {[%emt 0:03:08]} Rxc5 {[%emt 0:02:13]} 25. Rxd6 {[%emt 0:00:29]} Kxd6 {[%emt 0:00:08][%mdl 4096] Endgame. KRB-KRN} 26. Rd1+ {[%emt 0:00:05]} (26. Nxf7+ Ke7 27. Ne5 Bxe5 28. fxe5 Rxe5 $17) 26... Ke7 {[%emt 0:00:17] [#]} 27. Nd7 {[%emt 0:55:02]} Rc6 {[%emt 0:06:02]} 28. Nb8 {[%emt 0:00:00][%csl LRa6,LRc6]} Rc8 {[%emt 0:01:17]} 29. Nxa6 {[%emt 0:00:00]} Ke8 {[%emt 0:07:32]} (29... g5 $142) 30. Rd6 {[%emt 0:00:00]} Bd8 {[%emt 0:00:29]} 31. a4 {[%emt 0:00:00] White is much more active.} Ke7 {[%emt 0:00:39]} 32. Rd3 {[%emt 0:00:00]} Ke8 {[%emt 0:00:23]} 33. Nb4 {[%emt 0:00:00]} Be7 {[%emt 0:00:30]} 34. Na2 {[%emt 0:00:00]} f6 {[%emt 0:00:14]} 35. Kf3 {[%emt 0:00:00]} g5 {[%emt 0:00:55]} (35... f5 $16 {is a better defense.} 36. Ke2 h5) 36. fxg5 $18 {[%emt 0:00:00]} fxg5 {[%emt 0:00:10]} 37. Nc3 {[%emt 0:00:00]} h5 {[%emt 0:00:38]} 38. Ne4 {[%emt 0:00:00]} g4+ $2 {[%emt 0:00:30]} (38... Rb8 {was called for.} 39. Ke3 Rd8 40. Rxd8+ Bxd8) 39. Kf4 {[%emt 0:00:00]} Rc6 {[%emt 0:00:09]} 40. Ke5 {[%emt 0:00:00]} Kf7 {[%emt 0:00:12]} 41. Rd7 {[%emt 0:00:00] Strongly threatening Nd6+.} Ke8 {[%emt 0:00:46]} 42. Rb7 {[%emt 0:00:00]} Kd8 {[%emt 0:00:31]} 43. Rb8+ {[%emt 0:00:00]} Kd7 {[%emt 0:00:59]} 44. Rh8 {[%emt 0:00:00] Weighted Error Value: White=0.05 (flawless) /Black=0.29 (precise) .  Mistake:       	---       	Black=4      OK:         	White=17    	Black=8      Best:        	White=4     	Black=3} 1-0

[Event "III Menorca Open-A 2024"]
[Site "Ciutadella Menorca"]
[Date "2024.04.02"]
[Round "1.15"]
[White "Ermachenko, Manuel"]
[Black "Yuffa, Daniil"]
[Result "0-1"]
[ECO "B90"]
[WhiteElo "2161"]
[BlackElo "2606"]
[Annotator "RC"]
[PlyCount "132"]
[EventDate "2024.04.02"]
[EventType "swiss"]
[EventCountry "ESP"]
[SourceTitle "playchess.com"]
[Source "ChessBase"]
[SourceQuality "1"]
[TimeControl "5400+30"]

1. e4 {[%emt 0:00:05]} c5 {[%emt 0:00:17]} 2. Nf3 {[%emt 0:00:08]} d6 {[%emt 0:00:15]} 3. d4 {[%emt 0:00:09]} cxd4 {[%emt 0:00:10]} 4. Nxd4 {[%emt 0:00:06]} Nf6 {[%emt 0:00:12]} 5. Nc3 {[%emt 0:00:05]} a6 {[%emt 0:00:21]} 6. Be3 {[%emt 0:02:25]} e5 {[%emt 0:00:50]} 7. Nb3 {[%emt 0:00:03]} Be6 {[%emt 0:00:18]} 8. f3 {[%emt 0:02:02]} h5 {[%emt 0:00:26]} 9. Qd2 {[%emt 0:00:42]} Nbd7 {[%emt 0:00:26]} 10. Nd5 {[%emt 0:02:05]} Bxd5 {[%emt 0:00:16]} 11. exd5 {[%emt 0:00:07]} g6 {[%emt 0:00:12]} 12. Be2 {[%emt 0:05:06]} Bg7 {[%emt 0:00:25]} 13. O-O {[%emt 0:02:54]} O-O {[%emt 0:00:35]} 14. Rad1 {[%emt 0:01:48]} Re8 {[%emt 0:02:36]} 15. Na5 {[%emt 0:07:19]} Rb8 {[%emt 0:25:30]} 16. c4 {[%emt 0:04:45]} e4 {[%emt 0:00:53]} 17. f4 {[%emt 0:01:15]} Ng4 {[%emt 0:01:40]} 18. Bxg4 {[%emt 0:00:44]} hxg4 {[%emt 0:00:04]} 19. b4 {[%emt 0:01:28]} Qh4 {[%emt 0:09:06]} 20. Qf2 {[%emt 0:08:22]} Qh5 {[%emt 0:08:04]} 21. c5 {[%emt 0:05:03]} Nf6 {[%emt 0:04:35]} 22. f5 {[%emt 0:04:23]} gxf5 {[%emt 0:13:11]} 23. Qxf5 {[%emt 0:02:09]} Re5 {[%emt 0:00:33]} 24. Qxh5 {[%emt 0:02:23]} Rxh5 {[%emt 0:00:31]} 25. Bf4 {[%emt 0:10:47]} Nxd5 {[%emt 0:02:08]} 26. cxd6 {[%emt 0:06:46]} e3 {[%emt 0:03:02]} 27. d7 {[%emt 0:05:45]} Rd8 {[%emt 0:00:41]} 28. Rfe1 {[%emt 0:01:05]} Rxd7 {[%emt 0:11:21]} 29. Rxe3 {[%emt 0:02:28]} Rf5 {[%emt 0:09:17]} 30. Re4 {[%emt 0:02:28]} b5 {[%emt 0:01:57]} 31. Nb3 {[%emt 0:02:10]} Nf6 {[%emt 0:00:50]} 32. Rxd7 {[%emt 0:01:59]} Nxe4 {[%emt 0:00:06]} 33. g3 {[%emt 0:01:01]} Nc3 {[%emt 0:00:05]} 34. Rd2 {[%emt 0:00:56]} Rd5 {[%emt 0:00:54]} 35. Rxd5 {[%emt 0:03:58]} Nxd5 {[%emt 0:00:02]} 36. Bd2 {[%emt 0:01:24]} f5 {[%emt 0:00:16]} 37. Kf1 {[%emt 0:01:13]} Bf8 {[%emt 0:02:00]} 38. a3 {[%emt 0:00:36]} Kf7 {[%emt 0:00:27]} 39. Ke2 {[%emt 0:00:24]} Nb6 {[%emt 0:01:16]} 40. Nd4 {[%emt 0:01:19]} Kg6 {[%emt 0:00:16]} 41. Ne6 {[%emt 0:00:55]} Bd6 {[%emt 0:00:41]} 42. Bf4 {[%emt 0:04:09]} Kf6 {[%emt 0:00:09]} 43. Bxd6 {[%emt 0:01:45]} Kxe6 {[%emt 0:00:02]} 44. Bf4 {[%emt 0:00:11]} Nc4 {[%emt 0:00:07]} 45. Bc1 {[%emt 0:00:05]} Ke5 {[%emt 0:00:40]} 46. Kd3 {[%emt 0:00:41]} Kd5 {[%emt 0:00:05]} 47. Kc3 {[%emt 0:00:57]} Ke4 {[%emt 0:00:06]} 48. a4 {[%emt 0:00:34]} Ne3 {[%emt 0:00:36]} 49. axb5 {[%emt 0:00:40]} axb5 {[%emt 0:00:03]} 50. Bd2 {[%emt 0:00:29]} Nf1 {[%emt 0:00:12]} 51. Bf4 {[%emt 0:00:03]} Nxh2 {[%emt 0:00:07]} 52. Kd2 {[%emt 0:00:21]} Nf3+ {[%emt 0:00:10]} 53. Kc3 {[%emt 0:00:04]} Nd4 {[%emt 0:00:31]} 54. Kd2 {[%emt 0:00:15]} Nc6 {[%emt 0:00:44]} 55. Kc3 {[%emt 0:00:10]} Ne7 {[%emt 0:00:13]} 56. Bd6 {[%emt 0:00:19]} Nd5+ {[%emt 0:00:04]} 57. Kb3 {[%emt 0:00:18]} Kd3 {[%emt 0:00:19]} 58. Be5 {[%emt 0:00:15]} Ne3 {[%emt 0:00:40]} 59. Bf4 {[%emt 0:00:06]} Nc4 {[%emt 0:00:16]} 60. Bc7 {[%emt 0:00:13]} Nd2+ {[%emt 0:00:07]} 61. Ka3 {[%emt 0:00:05]} Ne4 {[%emt 0:02:19]} 62. Kb3 {[%emt 0:00:08]} Ke2 {[%emt 0:02:27]} 63. Kc2 {[%emt 0:00:05]} Kf3 {[%emt 0:00:04]} 64. Kd3 {[%emt 0:00:07]} Nxg3 {[%emt 0:00:03]} 65. Kd4 {[%emt 0:00:13]} f4 {[%emt 0:00:25]} 66. Ke5 {[%emt 0:00:17]} Ne2 {[%emt 0:00:20]} 0-1

[Event "III Menorca Open-A 2024"]
[Site "Ciutadella Menorca"]
[Date "2024.04.02"]
[Round "1.16"]
[White "Albornoz Cabrera, Carlos Daniel"]
[Black "Paikens, Reinis"]
[Result "1-0"]
[ECO "C70"]
[WhiteElo "2603"]
[BlackElo "2122"]
[Annotator "TA"]
[PlyCount "53"]
[EventDate "2024.04.02"]
[EventType "swiss"]
[EventCountry "ESP"]
[SourceTitle "playchess.com"]
[Source "ChessBase"]
[SourceQuality "1"]
[TimeControl "5400+30"]

{[%evp 9,53,27,35,33,26,25,29,22,32,19,50,63,46,39,88,82,84,77,101,79,74,82,84,80,88,97,93,56,82,52,125,111,139,142,476,356,895,920,1929,1913,29988,29989,29989,29990,29990,29991]} 1. e4 {[%emt 0:00:03]} e5 {[%emt 0:00:15]} 2. Nf3 {[%emt 0:00:04]} Nc6 {[%emt 0:00:09]} 3. Bb5 {[%emt 0:00:05][%cal Bf1b5,Bb5a4,Ba4b3][%mdl 32]} g6 {[%emt 0:00:14]} 4. c3 {[%emt 0:01:25]} a6 {[%emt 0:00:11]} 5. Ba4 {[%emt 0:00:14]} Bg7 {[%emt 0:01:14]} 6. d4 {[%emt 0:00:45]} exd4 {[%emt 0:00:15]} 7. cxd4 {[%emt 0:00:04]} b5 {[%emt 0:00:24]} 8. Bb3 {[%emt 0:00:37] White has an edge.} Na5 {[%emt 0:06:00]} 9. Bc2 {[%emt 0:02:14]} d5 {[%emt 0:20:24]} 10. O-O {[%emt 0:11:30]} Ne7 {[%emt 0:00:25]} 11. e5 {[%emt 0:09:27]} h6 {[%emt 0:02:07]} (11... O-O $14) 12. h3 $16 {[%emt 0:01:54]} O-O {[%emt 0:05:13]} 13. Nc3 {[%emt 0:00:52][%cal Bb1c3,Bc3e2,Be2g3][%mdl 32]} Bb7 {[%emt 0:03:44][%cal Oc7c5]} 14. Ne2 {[%emt 0:02:26] White is more active.} c5 {[%emt 0:05:35]} 15. dxc5 {[%emt 0:04:21][%cal Oe5e6]} Qc7 {[%emt 0:02:41]} 16. Bf4 {[%emt 0:16:04]} Qxc5 {[%emt 0:07:11][%cal Od5d4]} 17. Rc1 {[%emt 0:00:21][%cal Oc2g6] Bxg6! would now be deadly.} Qb6 {[%emt 0:01:44][%cal Od5d4]} 18. b3 {[%emt 0:00:56]} Nac6 {[%emt 0:03:04][%cal Od5d4]} 19. Ng3 {[%emt 0:09:27]} Bc8 {[%emt 0:18:10]} (19... Rae8 $14) 20. Re1 {[%emt 0:04:16]} Be6 {[%emt 0:01:18]} 21. Qd2 {[%emt 0:01:50]} h5 {[%emt 0:03:24][%mdl 8192] Black cannot hold the game after this.} (21... Qa5 $16 {is a better chance.}) 22. Bh6 {[%emt 0:01:31][%cal Og3h5] And now Nxh5! would win.} Rfd8 $2 {[%emt 0:02:13]} (22... Rae8 23. Bxg7 Kxg7) 23. Qg5 $18 {[%emt 0:04:32] Hoping for Bxg7.} Bxh6 {[%emt 0:00:32]} 24. Qxh6 {[%emt 0:00:34] Intending Ng5 and mate.} Nd4 {[%emt 0:00:21]} 25. Ng5 {[%emt 0:02:04] White mates.} Nxc2 {[%emt 0:02:36] [#]} 26. Nh7 $1 {[%emt 0:01:21][%cal Rh7f6]} f5 {[%emt 0:02:57] [#]} 27. exf6 $1 {[%emt 0:00:12] Weighted Error Value: White=0.15 (very precise) /Black=0.68.  Loses game:     	---       	Black=1      Mistake:       	---       	Black=3      Inaccurate:     	White=2     	Black=2      OK:         	White=7     	Black=4      Best:        	White=1     	Black=1} 1-0

[Event "III Menorca Open-A 2024"]
[Site "Ciutadella Menorca"]
[Date "2024.04.02"]
[Round "1.17"]
[White "Rodriguez Lopez, Rafael"]
[Black "Pranav Vijay"]
[Result "0-1"]
[ECO "C73"]
[WhiteElo "2167"]
[BlackElo "2252"]
[Annotator "RC"]
[PlyCount "82"]
[EventDate "2024.04.02"]
[EventType "swiss"]
[EventCountry "ESP"]
[SourceTitle "playchess.com"]
[Source "ChessBase"]
[SourceQuality "1"]
[TimeControl "5400+30"]

1. e4 {[%emt 0:00:05]} e5 {[%emt 0:00:13]} 2. Nf3 {[%emt 0:00:09]} Nc6 {[%emt 0:00:07]} 3. Bb5 {[%emt 0:00:04]} a6 {[%emt 0:00:10]} 4. Ba4 {[%emt 0:00:04]} Nf6 {[%emt 0:00:12]} 5. O-O {[%emt 0:00:07]} d6 {[%emt 0:00:47]} 6. Bxc6+ {[%emt 0:00:27]} bxc6 {[%emt 0:00:12]} 7. d4 {[%emt 0:00:07]} exd4 {[%emt 0:03:16]} 8. Nxd4 {[%emt 0:00:13]} c5 {[%emt 0:02:14]} 9. Ne2 {[%emt 0:01:32]} Be7 {[%emt 0:04:27]} 10. Nbc3 {[%emt 0:00:20]} O-O {[%emt 0:00:21]} 11. Ng3 {[%emt 0:00:21]} Re8 {[%emt 0:02:53]} 12. Re1 {[%emt 0:02:07]} Bf8 {[%emt 0:05:02]} 13. b3 {[%emt 0:02:59]} Rb8 {[%emt 0:08:21]} 14. Bb2 {[%emt 0:02:03]} c6 {[%emt 0:01:35]} 15. e5 {[%emt 0:08:39]} dxe5 {[%emt 0:01:23]} 16. Qxd8 {[%emt 0:00:17]} Rxd8 {[%emt 0:00:05]} 17. Rxe5 {[%emt 0:00:18]} c4 {[%emt 0:00:34]} 18. Rd1 {[%emt 0:02:59]} Be6 {[%emt 0:03:19]} 19. Ree1 {[%emt 0:01:21]} a5 {[%emt 0:09:54]} 20. Rxd8 {[%emt 0:00:57]} Rxd8 {[%emt 0:00:02]} 21. Rd1 {[%emt 0:00:10]} Rb8 {[%emt 0:02:26]} 22. Nge4 {[%emt 0:02:55]} Nxe4 {[%emt 0:03:13]} 23. Nxe4 {[%emt 0:00:05]} cxb3 {[%emt 0:06:29]} 24. cxb3 {[%emt 0:04:23]} a4 {[%emt 0:00:14]} 25. Be5 {[%emt 0:00:15]} Rb5 {[%emt 0:00:39]} 26. f4 {[%emt 0:02:11]} axb3 {[%emt 0:02:33]} 27. axb3 {[%emt 0:00:08]} f6 {[%emt 0:04:45]} 28. Bd6 {[%emt 0:03:58]} Bxb3 {[%emt 0:06:14]} 29. Ra1 {[%emt 0:00:31]} Bxd6 {[%emt 0:00:24]} 30. Nxd6 {[%emt 0:00:06]} Rb8 {[%emt 0:00:06]} 31. Ra7 {[%emt 0:00:25]} Kf8 {[%emt 0:06:20]} 32. Nf5 {[%emt 0:02:45]} Bf7 {[%emt 0:04:00]} 33. Rc7 {[%emt 0:00:37]} g6 {[%emt 0:00:53]} 34. Ne7 {[%emt 0:01:14]} Rb1+ {[%emt 0:02:58]} 35. Kf2 {[%emt 0:00:06]} Rb2+ {[%emt 0:00:04]} 36. Kg3 {[%emt 0:08:12]} c5 {[%emt 0:00:08]} 37. Nc8 {[%emt 0:00:17]} c4 {[%emt 0:00:46]} 38. Nd6 {[%emt 0:00:15]} Bd5 {[%emt 0:00:08]} 39. Rc5 {[%emt 0:04:12]} Rxg2+ {[%emt 0:00:30]} 40. Kh3 {[%emt 0:00:06]} Rd2 {[%emt 0:00:06]} 41. f5 {[%emt 0:01:47]} Rd3+ {[%emt 0:00:41]} 0-1

[Event "III Menorca Open-A 2024"]
[Site "Ciutadella Menorca"]
[Date "2024.04.02"]
[Round "1.18"]
[White "Idani, Pouya"]
[Black "Molina Carretero, Daniel"]
[Result "1-0"]
[ECO "B13"]
[WhiteElo "2609"]
[BlackElo "2176"]
[Annotator "TA"]
[PlyCount "49"]
[EventDate "2024.04.02"]
[EventType "swiss"]
[EventCountry "ESP"]
[SourceTitle "playchess.com"]
[Source "ChessBase"]
[SourceQuality "1"]
[TimeControl "5400+30"]

{[%evp 9,49,31,39,31,27,26,27,43,37,13,25,18,60,54,70,74,82,64,65,45,160,125,125,109,175,175,414,417,831,754,934,929,926,896,862,856,1113,1118,1064,275,516,509]} 1. e4 {[%emt 0:00:03]} c6 {[%emt 0:00:06]} 2. d4 {[%emt 0:00:08]} d5 {[%emt 0:00:08]} 3. exd5 {[%emt 0:00:23]} cxd5 {[%emt 0:00:06]} 4. Bd3 {[%emt 0:00:05]} Nc6 {[%emt 0:00:10]} 5. c3 {[%emt 0:00:05][%cal Bc2c3,Bc3c4,Bc4d5,Bd5c6][%mdl 32]} e6 {[%emt 0:00:14]} 6. Nf3 {[%emt 0:02:33]} Bd6 {[%emt 0:00:25]} 7. O-O {[%emt 0:00:06]} Nge7 {[%emt 0:00:10]} 8. Re1 {[%emt 0:00:15] White has an edge.} O-O {[%emt 0:00:17]} 9. b3 {[%emt 0:00:32]} f6 {[%emt 0:03:36]} 10. c4 {[%emt 0:03:24]} a6 {[%emt 0:04:47][%cal Ob7b5]} 11. Nc3 {[%emt 0:05:53]} Kh8 {[%emt 0:02:03]} 12. Bb2 {[%emt 0:03:07]} Bc7 {[%emt 0:16:41][%cal Bd6c7,Bc7a5,Ba5c3][%mdl 32]} 13. Ba3 {[%emt 0:08:19]} Ba5 {[%emt 0:05:57]} 14. Bc2 {[%emt 0:08:25] White has more active pieces.} e5 {[%emt 0:16:40]} (14... Bxc3 $6 15. Qd3 Ng6 16. Qxc3 $16) (14... dxc4 $14 15. bxc4 Re8 (15... Bxc3 $2 16. Qd3 $18)) 15. cxd5 {[%emt 0:10:28]} Bxc3 {[%emt 0:17:54] [#]} 16. Qd3 $1 {[%emt 0:00:52][%csl Gc2][%cal Rd3h7] Chess con chili.} e4 {[%emt 0:06:50]} (16... Bf5 $16 17. Qxc3 Nxd5) 17. Qxc3 $40 {[%emt 0:00:21][%mdl 128] White goes for the king.} exf3 $2 {[%emt 0:02:49]} (17... Nxd5 18. Qc5 (18. Bxe4 $2 Nxc3 19. Bxc6 bxc6 $19) 18... Rf7) 18. dxc6 {[%emt 0:00:12]} Rf7 {[%emt 0:03:03]} (18... Nxc6 $142 19. Bxf8 (19. gxf3 Rg8 $18) (19. Qxf3 Nxd4 20. Qd1 Nxc2 $14) 19... Qxf8 20. Qxf3 (20. gxf3 Bd7 $18) 20... Bd7) 19. Bxe7 {[%emt 0:01:16]} (19. gxf3 Nd5 $18) 19... Rxe7 {[%emt 0:00:26]} 20. Rxe7 {[%emt 0:00:28]} Qxe7 {[%emt 0:00:09]} 21. Re1 {[%emt 0:00:05]} Qf7 {[%emt 0:00:24]} 22. Qc4 {[%emt 0:02:24]} Qxc4 {[%emt 0:00:35]} 23. bxc4 {[%emt 0:00:04][%cal Re1e8] [#]} Kg8 {[%emt 0:00:50]} 24. Re8+ {[%emt 0:03:50]} (24. gxf3 bxc6 25. Ba4 Bd7 $18) (24. c7 $142) 24... Kf7 {[%emt 0:00:12]} 25. Rd8 {[%emt 0:00:02] Weighted Error Value: White=0.35/Black=0.48.  Mistake:       	---       	Black=4      Inaccurate:     	---       	Black=1      OK:         	White=5     	Black=5      Best:        	White=2     	Black=1      Strong:       	White=1     	---} 1-0

[Event "III Menorca Open-A 2024"]
[Site "Ciutadella Menorca"]
[Date "2024.04.02"]
[Round "1.19"]
[White "Perez Perez, Gabriel"]
[Black "Jumabayev, Rinat"]
[Result "0-1"]
[ECO "B61"]
[WhiteElo "2178"]
[BlackElo "2598"]
[Annotator "TA"]
[PlyCount "98"]
[EventDate "2024.04.02"]
[EventType "swiss"]
[EventCountry "ESP"]
[SourceTitle "playchess.com"]
[Source "ChessBase"]
[SourceQuality "1"]
[TimeControl "5400+30"]

{[%evp 19,98,45,43,11,61,42,43,45,54,25,49,44,44,43,52,37,36,30,33,3,11,18,0,0,5,0,8,-18,-20,-14,0,-26,-29,-25,-28,-68,-62,-68,-64,-91,-93,-121,-110,-117,-114,-141,-140,-194,-180,-214,-150,-157,-145,-217,-183,-247,-255,-274,-271,-286,-288,-357,-452,-445,-445,-1508,-1543,-1111,-1106,-2272,-1020,-29972,-29973,-29981,-29982,-29982,-29983,-29987,-29988,-29988,-29989]} 1. e4 {[%emt 0:00:04]} c5 {[%emt 0:00:09]} 2. Nf3 {[%emt 0:00:05]} Nc6 {[%emt 0:00:18]} 3. d4 {[%emt 0:03:16]} cxd4 {[%emt 0:00:18]} 4. Nxd4 {[%emt 0:00:15]} Nf6 {[%emt 0:00:06]} 5. Nc3 {[%emt 0:00:07]} d6 {[%emt 0:00:07]} 6. Bg5 {[%emt 0:00:21]} Bd7 {[%emt 0:03:01]} 7. Qd2 {[%emt 0:00:43]} Rc8 {[%emt 0:00:10]} 8. O-O-O {[%emt 0:03:41]} Nxd4 {[%emt 0:00:18]} 9. Qxd4 {[%emt 0:00:08]} Qa5 {[%emt 0:00:04]} 10. Be3 {[%emt 0:02:24]} a6 {[%emt 0:13:51]} 11. f3 {[%emt 0:08:54]} e5 {[%emt 0:15:33]} (11... g6 $1 $11) 12. Qb6 {[%emt 0:18:17]} Qxb6 {[%emt 0:00:11]} 13. Bxb6 {[%emt 0:00:01] White is slightly better.} h5 {[%emt 0:03:08]} 14. h4 {[%emt 0:05:43]} Be7 {[%emt 0:02:26]} 15. g3 {[%emt 0:06:17]} Be6 {[%emt 0:01:05]} 16. Kb1 {[%emt 0:23:05]} O-O {[%emt 0:03:33]} 17. Be3 {[%emt 0:01:16]} g6 {[%emt 0:09:13]} 18. Bg5 {[%emt 0:06:10]} Kg7 {[%emt 0:04:19]} 19. Bxf6+ {[%emt 0:06:31]} Kxf6 {[%emt 0:00:02]} 20. Nd5+ {[%emt 0:01:46]} Bxd5 {[%emt 0:00:02]} 21. Rxd5 {[%emt 0:00:02]} Kg7 {[%emt 0:00:41]} 22. Bh3 {[%emt 0:05:33]} Rc4 {[%emt 0:00:13]} 23. b3 {[%emt 0:02:11]} Rc3 {[%emt 0:01:25]} 24. Rd3 {[%emt 0:00:14]} Rc5 {[%emt 0:02:36]} 25. g4 {[%emt 0:02:50]} hxg4 {[%emt 0:09:58]} 26. fxg4 {[%emt 0:00:01]} Rh8 {[%emt 0:03:26]} 27. Bg2 {[%emt 0:00:22]} Rxh4 {[%emt 0:00:47]} 28. Rxh4 {[%emt 0:00:06]} Bxh4 {[%emt 0:00:07]} 29. Rxd6 $15 {[%emt 0:00:12][%mdl 4096] Endgame. KRB-KRB} Rc7 {[%emt 0:00:11] Prevents Rd7.} 30. Bf1 {[%emt 0:01:07] [#]} Kh6 $1 {[%emt 0:00:40]} 31. Be2 {[%emt 0:03:00] [#]} Kg5 $1 {[%emt 0:00:18]} 32. Rd3 {[%emt 0:00:21]} Kf4 {[%emt 0:00:59]} 33. Bf3 {[%emt 0:00:01]} (33. c3 $17 {keeps fighting.}) 33... Bf2 {[%emt 0:03:05]} 34. a4 {[%emt 0:01:26]} Be3 {[%emt 0:01:20]} 35. Bg2 {[%emt 0:00:01]} Bd4 {[%emt 0:00:10]} 36. Bf3 {[%emt 0:00:30]} (36. Kc1 $17 {was worth a try.}) 36... b5 {[%emt 0:00:26]} 37. axb5 {[%emt 0:01:28]} (37. Be2 $142) 37... axb5 $19 {[%emt 0:00:05]} 38. b4 {[%emt 0:00:15]} Rc4 {[%emt 0:01:38]} 39. Rb3 {[%emt 0:00:05]} Bc3 {[%emt 0:03:33]} 40. Bd1 {[%emt 0:01:09]} Kxe4 {[%emt 0:12:31][%cal Oe4e3] aiming for ...Ke3!} 41. Be2 {[%emt 0:00:18]} Rxb4 {[%emt 0:00:37]} 42. Bxb5 {[%emt 0:00:42]} (42. g5 $142 Kf5 43. Rxb4 Bxb4 44. c3 Bxc3 45. Bf1) 42... Rxb3+ {[%emt 0:04:47]} 43. cxb3 {[%emt 0:00:01] KB-KB} f5 {[%emt 0:00:22]} 44. Kc2 {[%emt 0:00:23]} Bb4 {[%emt 0:00:02]} (44... Kd4 $142 45. g5 f4) 45. Bd3+ {[%emt 0:01:07]} Kf4 {[%emt 0:00:03] Black mates.} 46. gxf5 {[%emt 0:00:02]} gxf5 {[%emt 0:00:08]} 47. Kd1 {[%emt 0:00:58]} e4 {[%emt 0:00:09]} 48. Bb1 {[%emt 0:00:30]} Ke3 {[%emt 0:00:12]} 49. Bc2 {[%emt 0:00:15]} f4 {[%emt 0:00:08] Weighted Error Value: White=0.60/Black=0.18 (very precise) .  Mistake:       	White=4     	Black=1      Inaccurate:     	White=7     	---        OK:         	White=7     	Black=11     Best:        	White=2     	Black=4      Strong:       	---       	Black=1} 0-1

[Event "III Menorca Open-A 2024"]
[Site "Ciutadella Menorca"]
[Date "2024.04.02"]
[Round "1.20"]
[White "Kourkoulos-Arditis, Stamatis"]
[Black "Akshit Kumar J"]
[Result "1/2-1/2"]
[ECO "A07"]
[WhiteElo "2556"]
[BlackElo "2172"]
[Annotator "TA"]
[PlyCount "53"]
[EventDate "2024.04.02"]
[EventType "swiss"]
[EventCountry "ESP"]
[SourceTitle "playchess.com"]
[Source "ChessBase"]
[SourceQuality "1"]
[TimeControl "5400+30"]

{[%evp 19,53,24,28,8,15,15,41,12,21,0,4,8,22,13,20,10,10,0,22,-10,0,0,13,0,0,0,0,0,0,-30,-21,-17,-6,-110,-122,-103]} 1. Nf3 {[%emt 0:00:06]} d5 {[%emt 0:03:38]} 2. g3 {[%emt 0:00:08]} Nf6 {[%emt 0:00:21]} 3. Bg2 {[%emt 0:00:05]} c6 {[%emt 0:00:10]} 4. O-O {[%emt 0:00:06]} Bg4 {[%emt 0:00:03]} 5. d3 {[%emt 0:00:37]} Nbd7 {[%emt 0:00:15]} 6. Nbd2 {[%emt 0:00:09]} e5 {[%emt 0:00:21]} 7. h3 {[%emt 0:00:16]} Bh5 {[%emt 0:00:32]} 8. e4 {[%emt 0:00:12]} dxe4 {[%emt 0:00:14]} 9. dxe4 {[%emt 0:00:07]} Bc5 {[%emt 0:00:07]} 10. Qe1 {[%emt 0:00:49]} O-O {[%emt 0:01:03]} 11. Nh4 {[%emt 0:01:55]} Re8 {[%emt 0:02:21]} 12. a4 {[%emt 0:00:58]} a5 {[%emt 0:00:34]} 13. Nb3 {[%emt 0:00:33] White is slightly better.} Bb6 {[%emt 0:04:16]} 14. Bg5 {[%emt 0:01:43]} h6 {[%emt 0:13:21]} 15. Be3 {[%emt 0:05:24]} Nf8 {[%emt 0:15:50]} 16. Nf5 {[%emt 0:05:57][%cal Of5d6]} Bxe3 {[%emt 0:03:48]} 17. Qxe3 {[%emt 0:00:24]} Ne6 {[%emt 0:00:44]} 18. f4 {[%emt 0:04:48][%cal Bf2f4,Bf4e5][%mdl 32]} Qc7 {[%emt 0:10:29]} 19. Kh1 {[%emt 0:04:37]} Kh7 {[%emt 0:04:00]} 20. Nh4 {[%emt 0:06:17]} Qe7 {[%emt 0:10:56]} 21. fxe5 {[%emt 0:11:55]} Nd7 {[%emt 0:00:46]} 22. Nf5 {[%emt 0:00:05]} Qb4 {[%emt 0:05:41]} 23. Nd6 {[%emt 0:11:24]} (23. g4 $5 Bg6 $8 24. Nd6 $11) 23... Re7 {[%emt 0:01:03]} 24. Qd2 {[%emt 0:01:34]} (24. Nf5 $5 Ree8 $8 25. Nd6 $11) 24... Qxd2 {[%emt 0:05:21]} 25. Nxd2 {[%emt 0:00:41]} Nxe5 {[%emt 0:00:30]} 26. Nb3 {[%emt 0:16:32]} (26. Rf5 $1 $11 Ng5 27. Nb3) 26... Rd7 $17 {[%emt 0:03:45]} 27. Nf5 {[%emt 0:01:12] Weighted Error Value: White=0.21 (precise) /Black=0.05 (flawless) .  Mistake:       	White=1     	---        Inaccurate:     	White=3     	Black=1      OK:         	White=6     	Black=8} 1/2-1/2